fUSD/lending_fUSD_20251206
["ID","MTS","AMOUNT","RATE_DAILY","PERIOD"]
[396473797,1764979302011,-249.80695806,0.00015999,2]
[396473798,1764979303649,-177.2784073,0.00015999,2]
[396473799,1764979307577,-300.0,0.00015999,2]
[396473800,1764979310958,-253.13460407,0.00015999,2]
[396473801,1764979314051,-186.57,0.00015999,2]
[396473802,1764979318218,-1241.41996943,0.00015999,2]
[396473803,1764979318285,-5348.38978596,0.00015999,2]
[396473804,1764979318404,-2168.78027518,0.00015999,2]
[396473823,1764979832584,-998.0,0.000178,2]
[396473824,1764979832594,-302.0,0.000179,2]
[396473825,1764979832604,-5524.0,0.000182,3]
[396473826,1764979832613,-5524.0,0.000186,5]
[396473827,1764979832623,-300.0,0.00018699,2]
[396473828,1764979832637,-1200.0,0.00018699,2]
[396473829,1764979832648,-181.08010149,0.00019178,2]
[396473830,1764979832658,-1000.0,0.00019178,2]
[396473831,1764979832668,-250.0,0.0001969,2]
[396473832,1764979832679,-282.98224052,0.0001969,2]
[396473833,1764979832690,-651.0,0.00019726,2]
[396473834,1764979832700,-1130.05317012,0.00020337,2]
[396473835,1764979832710,-232.0,0.00020388,2]
[396473836,1764979832720,-1680.0,0.00020488,2]
[396473837,1764979832736,-983.0,0.00020533,2]
[396473838,1764979832747,-970.0,0.0002088,2]
[396473839,1764979832756,-1958.0,0.00020921,2]
[396473840,1764979832767,-890.0,0.00020963,2]
[396473841,1764979832777,-1218.0,0.00021005,2]
[396473842,1764979832787,-235.91881822,0.00021045,7]
[396473843,1764979832797,-10797.65,0.00021104,2]
[396473844,1764979832806,-294.22,0.00021132,2]
[396473845,1764979832815,-300.0,0.00021527,2]
[396473846,1764979832826,-1184.1830207,0.00021528,2]
[396473847,1764979832836,-13924.1575593,0.00021528,2]
[396473848,1764979832849,-34398.1750177,0.00021528,2]
[396473849,1764979832859,-3408.6916192,0.00021528,2]
[396473850,1764979832870,-5145.11,0.0002156,2]
[396473851,1764979832880,-1540.24,0.0002156,2]
[396473852,1764979832890,-150.99,0.0002156,2]
[396473853,1764979832900,-2536.55,0.0002156,2]
[396473854,1764979832910,-999.99,0.0002156,2]
[396473855,1764979832919,-9572.89,0.0002156,2]
[396473856,1764979832930,-150.99,0.0002156,2]
[396473857,1764979832940,-2774.87811226,0.0002156,2]
[396473858,1764979832952,-7225.11188774,0.0002156,2]
[396473859,1764979832962,-2704.10690286,0.0002156,2]
[396473860,1764979832986,-3510.79309714,0.0002156,2]
[396473861,1764979832995,-7043.97,0.0002156,2]
[396473862,1764979833004,-5988.84,0.0002156,2]
[396473863,1764979833014,-9999.99,0.0002156,2]
[396473864,1764979833027,-1600.0,0.00021561,2]
[396473865,1764979833037,-1000.0,0.00021613,2]
[396473866,1764979833047,-1821.0,0.00021918,4]
[396473867,1764979833057,-500.0,0.00022015,2]
[396473868,1764979833066,-150.0,0.00022192,4]
[396473869,1764979833076,-150.0,0.00022192,4]
[396473870,1764979833087,-150.0,0.00022192,4]
[396473871,1764979833098,-150.0,0.00022192,4]
[396473872,1764979833108,-3704.46,0.00022224,2]
[396473873,1764979833117,-249.78266794,0.0002231,2]
[396473874,1764979833127,-151.0,0.0002231,2]
[396473875,1764979833138,-151.0,0.0002231,2]
[396473876,1764979833147,-151.0,0.0002231,2]
[396473877,1764979833157,-151.0,0.0002231,2]
[396473878,1764979833167,-151.0,0.0002231,2]
[396473879,1764979833177,-4969.58046411,0.00022323,2]
[396473887,1764979838053,-1345.78953589,0.00022323,2]
[396473888,1764979838063,-150.0,0.00022324,2]
[396473889,1764979838072,-5000.0,0.00022333,2]
[396473890,1764979838081,-3465.4,0.00022342,2]
[396473891,1764979838091,-1451.58,0.00022346,2]
[396473892,1764979838100,-1000.0,0.0002239,2]
[396473893,1764979838109,-1000.0,0.00022423,2]
[396473894,1764979838119,-1586.0,0.00022447,2]
[396473895,1764979838128,-166.66,0.00022469,30]
[396473896,1764979838138,-1500.0,0.00022476,2]
[396473897,1764979838147,-3229.77,0.00022492,2]
[396473898,1764979838156,-339.3800878,0.00022603,2]
[396473899,1764979838166,-764.21,0.00022645,2]
[396473900,1764979838175,-151.77141743,0.00022645,2]
[396473901,1764979838185,-150.0,0.00022645,2]
[396473902,1764979838194,-150.0,0.00022645,2]
[396473903,1764979838204,-151.87385096,0.00022645,2]
[396473904,1764979838213,-150.0,0.00022645,2]
[396473905,1764979838223,-150.0,0.00022645,2]
[396473906,1764979838232,-155.3993959,0.00022645,2]
[396473907,1764979838242,-150.86785885,0.00022645,2]
[396473908,1764979838251,-172.77753655,0.00022645,2]
[396473909,1764979838261,-150.0,0.00022782,2]
[396473910,1764979838271,-150.0,0.00022782,2]
[396473911,1764979838280,-1045.76,0.00022865,2]
[396473912,1764979838290,-200.0,0.00022919,2]
[396473914,1764979838299,-200.0,0.00022919,2]
[396473916,1764979838308,-272.96866325,0.00022931,2]
[396473918,1764979838318,-166.66,0.00022942,30]
[396473920,1764979838327,-135543.14,0.00023,2]
[396473922,1764979838336,-500.0,0.00023039,2]
[396473924,1764979838345,-300.0,0.00023139,2]
[396473926,1764979838354,-153.78701479,0.00023139,2]
[396473928,1764979838364,-151.0,0.00023139,2]
[396473930,1764979838373,-574.12855637,0.00023139,2]
[396473932,1764979838382,-620.0,0.00023139,2]
[396473934,1764979838392,-1000.0,0.00023139,2]
[396473936,1764979838400,-151.0,0.00023139,2]
[396473938,1764979838410,-693.3919763,0.00023139,2]
[396473940,1764979838419,-600.0,0.00023139,2]
[396473942,1764979838429,-599.60298507,0.00023139,2]
[396473944,1764979838439,-500.0,0.00023158,2]
[396473946,1764979838448,-166.66,0.00023167,2]
[396473948,1764979838458,-249.03424435,0.00023174,2]
[396473950,1764979838467,-528.17,0.00023174,2]
[396473952,1764979838477,-2006.3332,0.00023224,2]
[396473954,1764979838486,-6675.0743,0.00023224,2]
[396473956,1764979838495,-1000.0,0.00023234,2]
[396473957,1764979838505,-500.0,0.00023265,2]
[396473958,1764979838514,-500.0,0.00023323,2]
[396473959,1764979838523,-500.0,0.00023345,2]
[396473960,1764979838532,-500.0,0.00023352,2]
[396473961,1764979838541,-500.0,0.00023364,2]
[396473962,1764979838551,-500.0,0.00023364,2]
[396473963,1764979838560,-500.0,0.00023364,2]
[396473964,1764979838569,-500.0,0.00023364,2]
[396473965,1764979838578,-500.0,0.00023364,2]
[396473966,1764979838587,-500.0,0.00023364,2]
[396473967,1764979838596,-500.0,0.00023364,2]
[396473968,1764979838605,-500.0,0.00023364,2]
[396473969,1764979838614,-500.0,0.00023364,2]
[396473970,1764979838625,-500.0,0.00023364,2]
[396473971,1764979838635,-500.0,0.00023364,2]
[396473972,1764979838644,-500.0,0.00023364,2]
[396473973,1764979838654,-500.0,0.00023364,2]
[396473974,1764979838663,-500.0,0.00023364,2]
[396473975,1764979838673,-500.0,0.00023364,2]
[396473976,1764979838682,-500.0,0.00023364,2]
[396473977,1764979838691,-500.0,0.00023364,2]
[396473978,1764979838702,-500.0,0.00023364,2]
[396473980,1764979838713,-500.0,0.00023364,2]
[396473982,1764979838722,-500.0,0.00023364,2]
[396473984,1764979838731,-500.0,0.00023364,2]
[396473986,1764979838741,-500.0,0.00023364,2]
[396473988,1764979838750,-500.0,0.00023364,2]
[396473990,1764979838762,-500.0,0.00023364,2]
[396473992,1764979838771,-157.9864572,0.00023364,2]
[396473994,1764979838784,-342.0135428,0.00023364,2]
[396473996,1764979838794,-500.0,0.00023364,2]
[396473998,1764979838803,-500.0,0.00023364,2]
[396474000,1764979838813,-500.0,0.00023364,2]
[396474002,1764979838822,-500.0,0.00023364,2]
[396474004,1764979838831,-500.0,0.00023364,2]
[396474006,1764979838840,-500.0,0.00023364,2]
[396474008,1764979838849,-500.0,0.00023364,2]
[396474010,1764979838859,-500.0,0.00023364,2]
[396474012,1764979838868,-500.0,0.00023364,2]
[396474014,1764979838878,-500.0,0.00023364,2]
[396474016,1764979838888,-500.0,0.00023364,2]
[396474018,1764979838897,-500.0,0.00023364,2]
[396474020,1764979838907,-500.0,0.00023364,2]
[396474022,1764979838917,-500.0,0.00023364,2]
[396474024,1764979838926,-500.0,0.00023364,2]
[396474026,1764979838935,-500.0,0.00023364,2]
[396474028,1764979838945,-500.0,0.00023364,2]
[396474030,1764979838954,-500.0,0.00023364,2]
[396474032,1764979838963,-500.0,0.00023364,2]
[396474034,1764979838972,-555.07684237,0.00023364,2]
[396474035,1764979838982,-500.0,0.00023364,2]
[396474037,1764979838991,-500.0,0.00023364,2]
[396474040,1764979839001,-500.0,0.00023364,2]
[396474041,1764979839010,-500.0,0.00023364,2]
[396474043,1764979839020,-500.0,0.00023364,2]
[396474045,1764979839029,-500.0,0.00023364,2]
[396474047,1764979839038,-500.0,0.00023364,2]
[396474049,1764979839048,-500.0,0.00023364,2]
[396474051,1764979839057,-500.0,0.00023364,2]
[396474053,1764979839066,-500.0,0.00023364,2]
[396474055,1764979839076,-500.0,0.00023364,2]
[396474057,1764979839086,-500.0,0.00023364,2]
[396474059,1764979839095,-500.0,0.00023364,2]
[396474061,1764979839104,-500.0,0.00023364,2]
[396474063,1764979839114,-500.0,0.00023364,2]
[396474065,1764979839124,-301.33465518,0.00023364,2]
[396474067,1764979839135,-500.0,0.00023364,2]
[396474069,1764979839145,-500.0,0.00023364,2]
[396474071,1764979839155,-500.0,0.00023364,2]
[396474073,1764979839164,-500.0,0.00023364,2]
[396474075,1764979839174,-500.0,0.00023364,2]
[396474077,1764979839183,-500.0,0.00023364,2]
[396474079,1764979839192,-600.0,0.00023364,2]
[396474081,1764979839201,-500.0,0.00023364,2]
[396474083,1764979839211,-500.0,0.00023364,2]
[396474085,1764979839220,-500.0,0.00023364,2]
[396474087,1764979839230,-500.0,0.00023364,2]
[396474089,1764979839239,-500.0,0.00023364,2]
[396474091,1764979839248,-500.0,0.00023364,2]
[396474092,1764979839258,-500.0,0.00023364,2]
[396474094,1764979839267,-500.0,0.00023364,2]
[396474096,1764979839277,-500.0,0.00023364,2]
[396474098,1764979839286,-500.0,0.00023364,2]
[396474101,1764979839295,-500.0,0.00023364,2]
[396474103,1764979839306,-500.0,0.00023364,2]
[396474104,1764979839315,-500.0,0.00023364,2]
[396474106,1764979839324,-500.0,0.00023364,2]
[396474108,1764979839333,-500.0,0.00023364,2]
[396474110,1764979839343,-500.0,0.00023364,2]
[396474112,1764979839352,-500.0,0.00023364,2]
[396474114,1764979839361,-500.0,0.00023364,2]
[396474116,1764979839371,-500.0,0.00023364,2]
[396474118,1764979839380,-500.0,0.00023364,2]
[396474120,1764979839390,-500.0,0.00023364,2]
[396474122,1764979839400,-500.0,0.00023364,2]
[396474124,1764979839409,-500.0,0.00023364,2]
[396474126,1764979839418,-500.0,0.00023364,2]
[396474128,1764979839428,-500.0,0.00023364,2]
[396474130,1764979839437,-500.0,0.00023364,2]
[396474132,1764979839447,-590.61184765,0.00023364,2]
[396474134,1764979839456,-500.0,0.00023364,2]
[396474136,1764979839465,-500.0,0.00023364,2]
[396474138,1764979839475,-500.0,0.00023364,2]
[396474140,1764979839484,-500.0,0.00023364,2]
[396474142,1764979839493,-500.0,0.00023364,2]
[396474144,1764979839503,-500.0,0.00023364,2]
[396474146,1764979839513,-500.0,0.00023364,2]
[396474148,1764979839522,-500.0,0.00023364,2]
[396474150,1764979839531,-500.0,0.00023364,2]
[396474152,1764979839541,-500.0,0.00023364,2]
[396474154,1764979839550,-500.0,0.00023364,2]
[396474156,1764979839559,-500.0,0.00023364,2]
[396474158,1764979839568,-500.0,0.00023364,2]
[396474160,1764979839578,-500.0,0.00023364,2]
[396474162,1764979839587,-500.0,0.00023364,2]
[396474164,1764979839596,-500.0,0.00023364,2]
[396474166,1764979839605,-500.0,0.00023364,2]
[396474168,1764979839614,-500.0,0.00023364,2]
[396474170,1764979839625,-500.0,0.00023364,2]
[396474172,1764979839636,-500.0,0.00023364,2]
[396474174,1764979839645,-190.06785933,0.00023405,2]
[396474176,1764979839654,-204.48885809,0.00023405,6]
[396474178,1764979839663,-500.0,0.00023408,2]
[396474180,1764979839674,-166.66,0.00023415,30]
[396474182,1764979839682,-2996.0,0.00023417,2]
[396474184,1764979839693,-500.0,0.00023422,2]
[396474186,1764979839702,-150.0,0.00023425,4]
[396474188,1764979839711,-500.0,0.00023444,2]
[396474190,1764979839720,-151.0,0.00023497,7]
[396474192,1764979839729,-806.0,0.000235,2]
[396474194,1764979839738,-184519.92848068,0.000235,2]
[396474300,1764979840686,-201.0,0.00023086,2]
[396474302,1764979840697,-350876.19237891,0.000235,2]
[396474349,1764979841166,-1012.34775547,0.000235,2]
[396474656,1764979844103,-324.71782894,0.000235,2]
[396475847,1764980300737,153.63,0.0001091,2]
[396475848,1764980300966,153.63,0.00011902,2]
[396475849,1764980301130,153.63,0.00012894,2]
[396475850,1764980301198,153.63,0.00013886,2]
[396475851,1764980301409,153.63,0.00014877,2]
[396475852,1764980301612,153.63,0.00015869,2]
[396475855,1764980817727,-231.8471339,0.000162,5]
[396475856,1764980822394,-300.0,0.00016199,2]
[396475857,1764980822418,-41.29697373,0.000162,5]
[396475858,1764980824609,-176.82166749,0.000162,5]
[396475859,1764980827420,-169.39917359,0.000162,5]
[396475860,1764980832129,-168.35,0.000162,5]
[396475861,1764980834986,-306.95217498,0.000162,5]
[396475862,1764980839422,-154.0535685,0.000162,5]
[396475863,1764980841601,-255.28695729,0.000162,5]
[396475864,1764980846319,-173.83212966,0.000162,5]
[396475865,1764980847840,-393.50588973,0.000162,5]
[396475866,1764980851293,-166.90941815,0.000162,5]
[396475867,1764980853742,-180.16566573,0.000162,5]
[396475868,1764980856512,-187.31676735,0.000162,5]
[396475869,1764980858078,-309.04400284,0.000162,5]
[396475870,1764980859635,-240.05034171,0.000162,5]
[396475871,1764980864324,-154.5051694,0.000162,5]
[396475872,1764980866922,-329.78465635,0.000162,5]
[396475873,1764980871638,-287.69209444,0.000162,5]
[396475874,1764980873661,-328.44188698,0.000162,5]
[396475875,1764980875704,-196.01030092,0.000162,5]
[396475876,1764980879080,-200.0,0.00016199,2]
[396475877,1764980881825,-275.59129947,0.00016199,2]
[396475878,1764980883409,-167.5883771,0.00016199,2]
[396475879,1764980886340,-46.82032343,0.00016199,2]
[396475880,1764980886364,-240.97536007,0.000162,5]
[396475881,1764980889941,-157.26744825,0.000162,5]
[396475882,1764980891681,-273.06277592,0.000162,5]
[396475883,1764980895056,-521.21450973,0.000162,5]
[396475884,1764980897229,-300.0,0.000162,5]
[396475885,1764980904128,-255.33562369,0.000162,5]
[396475886,1764980907787,-182.55910944,0.000162,5]
[396475887,1764980910223,-262.2724718,0.000162,5]
[396475888,1764980912367,-236.05885901,0.000162,5]
[396475889,1764980915868,-205.69954354,0.00016,4]
[396475890,1764980919708,-155.32499974,0.00016,4]
[396475891,1764980920827,171.53,0.00014439,2]
[396475892,1764980923595,-8906.7,0.00016,4]
[396475893,1764980923780,-10000.01,0.00016,4]
[396475894,1764980923886,-10000.01,0.00016,4]
[396475895,1764980924057,-10000.01,0.00016,4]
[396475896,1764980924120,-10000.01,0.00016,4]
[396475897,1764980924253,-10000.01,0.00016,4]
[396475898,1764980925373,-10000.01,0.00016,4]
[396475899,1764980925727,-10000.01,0.00016,4]
[396475900,1764980925758,-10000.01,0.00016,4]
[396475901,1764980926600,-433.1976646,0.00016,4]
[396475902,1764980929482,-10000.01,0.00016,4]
[396475903,1764980930888,-448.02499735,0.00016,4]
[396475904,1764980933868,-167.43040342,0.00016,4]
[396475905,1764980938179,-210.88493688,0.00016,4]
[396475906,1764980941957,-190.84913213,0.00016,4]
[396475907,1764980945132,-410.98113856,0.00016,4]
[396475908,1764980952836,-294.56710426,0.00016,4]
[396475909,1764980955474,-190.30420666,0.00016,4]
[396475910,1764980958913,-203.2668536,0.00016,4]
[396475911,1764980961567,-212.04450742,0.00016,4]
[396475912,1764980964168,-184.19305398,0.00016,4]
[396475913,1764980973409,-337.18325901,0.00016,4]
[396475914,1764980976060,-263.12632716,0.00016,4]
[396475915,1764980980418,-285.39753864,0.00016,4]
[396475916,1764980982314,-363.11935683,0.00016,4]
[396475917,1764980986292,-200.0,0.00016,4]
[396475918,1764980988427,-257.38219419,0.00016,4]
[396475919,1764980992749,-82.965318,0.00016,4]
[396475920,1764980992772,-163.0206055,0.0001605,2]
[396475921,1764980998967,-31.9793945,0.0001605,2]
[396475922,1764980998989,-131.41890367,0.0001605,2]
[396475923,1764981002766,-168.58109633,0.0001605,2]
[396475924,1764981002791,-103.74119566,0.000161,2]
[396475925,1764981007609,-284.0,0.0001605,2]
[396475926,1764981007635,-24.84539116,0.000161,2]
[396475927,1764981012711,-64.41341318,0.000161,2]
[396475928,1764981012737,-220.07510212,0.000161,2]
[396475929,1764981016647,-29.92489788,0.000161,2]
[396475930,1764981016674,-199.35679758,0.000161,2]
[396475931,1764981018863,164.60378267,0.00015999,2]
[396475932,1764981019911,-100.64320242,0.000161,2]
[396475933,1764981019934,-195.0,0.00016185,2]
[396475934,1764981019959,-6.35679758,0.00016185,2]
[396475935,1764981023214,-152.26267521,0.00016185,2]
[396475936,1764981024805,-16.11316971,0.00016185,2]
[396475937,1764981024829,-193.0,0.00016424,2]
[396475938,1764981024853,-50.20365993,0.00016424,2]
[396475939,1764981029905,-142.79634007,0.00016424,2]
[396475940,1764981029927,-90.37903168,0.00016424,2]
[396475962,1764981032618,-92.18007776,0.00016424,2]
[396475964,1764981032628,-378.49568235,0.00016424,2]
[396475967,1764981032637,-157.75423723,0.00016822,2]
[396475969,1764981032653,-417.58336277,0.00016822,2]
[396475971,1764981032662,-300.0,0.00016859,2]
[396475973,1764981032671,-602.11324298,0.00016859,2]
[396475976,1764981032683,-597.88675702,0.00016859,2]
[396475978,1764981032692,-300.0,0.00016859,2]
[396475980,1764981032705,-550.0,0.00016859,2]
[396475982,1764981032714,-500.0,0.00016861,2]
[396475984,1764981032723,-500.0,0.00016861,2]
[396475986,1764981032734,-500.0,0.00016861,2]
[396475988,1764981032743,-500.0,0.00016861,2]
[396475990,1764981032751,-500.0,0.00016861,2]
[396475992,1764981032761,-153.63,0.00016861,2]
[396475994,1764981032770,-11319.39326869,0.00017,2]
[396475999,1764981032802,-6293.92560998,0.00017,2]
[396476003,1764981032838,-642.55591145,0.00017,2]
[396476355,1764981038197,-285.06134771,0.00016999,2]
[396476356,1764981038209,-214.93865229,0.00016999,2]
[396476357,1764981038218,-500.0,0.00016999,2]
[396476358,1764981038230,-34783.38881354,0.00017,2]
[396476359,1764981038241,-129616.04014902,0.00017,2]
[396476360,1764981038251,-200.0,0.00017019,2]
[396476361,1764981038260,-9686.7,0.0001709,2]
[396476362,1764981038270,-183243.46,0.00017295,2]
[396476363,1764981038280,-159.69571369,0.000175,2]
[396476364,1764981038289,-193.0,0.000176,2]
[396476365,1764981038299,-250.0,0.000176,2]
[396476366,1764981038308,-300.0,0.000176,2]
[396476367,1764981038317,-195.0,0.000176,2]
[396476368,1764981038327,-300.0,0.000176,2]
[396476369,1764981038336,-195.0,0.00017655,2]
[396476370,1764981038345,-248.0,0.00017657,2]
[396476371,1764981038354,-1082.17951679,0.00017753,2]
[396476372,1764981038363,-153.63,0.00017853,2]
[396476373,1764981038373,-306.0,0.00017867,2]
[396476374,1764981038382,-11221.06437102,0.000179,2]
[396476376,1764981038391,-1957.96493455,0.00017914,2]
[396476378,1764981038400,-410.0,0.00017972,2]
[396476380,1764981038409,-868.88250454,0.0001799,2]
[396476382,1764981038418,-868.88250454,0.0001799,2]
[396476384,1764981038428,-868.88250454,0.0001799,2]
[396476386,1764981038438,-300.0,0.00017999,2]
[396476388,1764981038447,-192.66328889,0.00017999,2]
[396476390,1764981038457,-399.40233375,0.00017999,2]
[396476391,1764981038466,-500.0,0.00017999,2]
[396476392,1764981038476,-392.18089447,0.00017999,2]
[396476393,1764981038485,-500.0,0.00017999,2]
[396476394,1764981038494,-500.0,0.00017999,2]
[396476395,1764981038504,-2372335.87530416,0.00018,2]
[396476396,1764981038516,-857.3756176,0.00018,2]
[396476397,1764981038561,-4915.32737884,0.00018,2]
[396476398,1764981040191,-512.40145235,0.00018,2]
[396476399,1764981040202,-400050.89276573,0.00018,2]
[396476400,1764981040313,-438.88872895,0.00018,2]
[396476401,1764981040324,-17618.0461822,0.00018,2]
[396476402,1764981040435,-682.81730511,0.00018,2]
[396476403,1764981040571,-649.22690153,0.00018,2]
[396476404,1764981041306,-1.7e-07,0.00018,2]
[396476406,1764981043357,-298.0,0.00017648,2]
[396476407,1764981043367,-191.64607935,0.00018,2]
[396476408,1764981043378,-736.43301719,0.00018,2]
[396476409,1764981298437,-357.25774127,0.00016438,2]
[396476410,1764981301375,-443.12568483,0.00016438,2]
[396476411,1764981303540,-225.63682101,0.00016438,2]
[396476412,1764981309967,-491.1104899,0.00016438,2]
[396476413,1764981317829,-231.61144897,0.00016438,2]
[396476414,1764981321133,-243.16233064,0.00016438,2]
[396476415,1764981325074,-156.28978546,0.00016438,2]
[396476416,1764981327638,-240.39871948,0.00016438,2]
[396476417,1764981329120,-155.31007659,0.00016438,2]
[396476418,1764981332632,-166.29926569,0.00016438,2]
[396476419,1764981335785,-300.0,0.00016438,2]
[396476420,1764981337471,-225.68494141,0.00016438,2]
[396476421,1764981339940,-227.53282604,0.00016438,2]
[396476422,1764981342822,-276.85341313,0.00016438,2]
[396476423,1764981344495,-166.45546187,0.00016438,2]
[396476424,1764981350045,-266.13736924,0.00016438,2]
[396476425,1764981352184,-161.32000017,0.00016438,2]
[396476426,1764981354277,-169.92881942,0.00016438,2]
[396476427,1764981358808,-166.66,0.00016356,2]
[396476428,1764981358832,-71.08399574,0.00016438,2]
[396476429,1764981361555,-250.04532576,0.00016438,2]
[396476430,1764981366297,-250.0,0.00016438,2]
[396476431,1764981368994,-212.02959272,0.00016438,2]
[396476432,1764981371192,-173.42287195,0.00016438,2]
[396476433,1764981372847,-320.23651117,0.00016438,2]
[396476434,1764981377863,-342.68378054,0.00016438,2]
[396476435,1764981382369,-431.46689418,0.00016438,2]
[396476436,1764981385050,-385.82923818,0.00016438,2]
[396476437,1764981387919,-232.68572867,0.00016438,2]
[396476438,1764981392803,-242.71582632,0.00016438,2]
[396476443,1764981612140,-288.0,0.00016438,2]
[396476444,1764981612163,-131.03569248,0.00016438,2]
[396476446,1764981912132,-182.54369777,0.000162,2]
[396476447,1764981912154,-124.7876556,0.000162,2]
[396476448,1764981913892,-25.2123444,0.000162,2]
[396476449,1764981913914,-150.0,0.000162,2]
[396476450,1764981913938,-114.58696209,0.000162,2]
[396476451,1764981917089,-35.41303791,0.000162,2]
[396476452,1764981917110,-186.8893346,0.000162,2]
[396476453,1764981918642,-48.1639605,0.000162,2]
[396476454,1764981918665,-150.0,0.000162,2]
[396476455,1764981918687,-140.99651573,0.000162,2]
[396476456,1764981926689,-9.00348427,0.000162,2]
[396476457,1764981926714,-150.0,0.000162,2]
[396476458,1764981926735,-150.0,0.000162,2]
[396476459,1764981926756,-150.0,0.000162,2]
[396476460,1764981926778,-150.0,0.000162,2]
[396476461,1764981926799,-150.0,0.000162,2]
[396476462,1764981926822,-17.38086182,0.000164,2]
[396476463,1764981942153,-260.6718391,0.000162,2]
[396476464,1764981942174,-150.0,0.000162,2]
[396476465,1764981942195,-89.3281609,0.000162,2]
[396476466,1764981944288,-136.57,0.000162,2]
[396476467,1764981944310,-150.0,0.000162,2]
[396476468,1764981944333,-132.61913818,0.000164,2]
[396476469,1764981944355,-15.55737173,0.00016438,2]
[396476470,1764981972183,-37.98197544,0.00016438,2]
[396476471,1764981972209,-485.64954908,0.00016444,2]
[396476472,1764981974967,-197.00144244,0.00016444,2]
[396476473,1764981977016,-154.6907052,0.00016444,2]
[396476474,1764981979998,-210.93645196,0.00016444,2]
[396476475,1764981982940,-373.87867379,0.00016444,2]
[396476476,1764981986614,-409.40194065,0.0001643,2]
[396476477,1764981988115,-222.32551363,0.0001643,2]
[396476478,1764981989723,-472.20225941,0.0001643,2]
[396476479,1764981992339,-250.0,0.0001643,2]
[396476480,1764982092140,-212.56479553,0.0001643,2]
[396476481,1764982092172,-146.07028631,0.0001643,2]
[396476482,1764982092195,-3.95388688,0.00016444,2]
[396476483,1764982143432,1000.0,0.00015999,3]
[396476485,1764982166664,-171.08071791,0.00016389,2]
[396476486,1764982168180,-168.61783143,0.00016389,2]
[396476487,1764982172419,-237.93196114,0.00016389,2]
[396476488,1764982174019,-336.60224428,0.00016389,2]
[396476489,1764982176026,-306.23748779,0.00016389,2]
[396476490,1764982197277,-177.27,0.00016373,2]
[396476491,1764982199364,-157.90268983,0.00016373,2]
[396476492,1764982201219,-221.24149237,0.00016373,2]
[396476493,1764982204689,-308.28539697,0.00016373,2]
[396476494,1764982206702,-256.92243837,0.00016373,2]
[396476495,1764982210635,-540.56864841,0.00016373,2]
[396476496,1764982213442,-242.06209982,0.00016373,2]
[396476497,1764982215702,-192.32018216,0.00016373,2]
[396476498,1764982218534,-519.54975835,0.00016373,2]
[396476499,1764982220658,-204.60499598,0.00016373,2]
[396476500,1764982223291,-182.73267266,0.00016337,2]
[396476501,1764982225332,-192.32018233,0.00016337,2]
[396476502,1764982229362,-232.63401562,0.00016337,2]
[396476503,1764982231344,-2857.71312939,0.00016337,2]
[396476504,1764982231354,-409.04229774,0.00016373,2]
[396476505,1764982231363,-287.0,0.00016373,2]
[396476506,1764982231372,-195.0,0.00016377,2]
[396476507,1764982231381,-212.02959272,0.00016381,2]
[396476508,1764982231390,-125.31975745,0.00016389,2]
[396476509,1764982231399,-25.46929065,0.00016444,2]
[396476510,1764982231408,-363.51,0.00016563,2]
[396476511,1764982231418,-150.0,0.000166,2]